[Event "DVM U12w 2024"]
[Site "Bad Homburg"]
[Date "2024.12.28"]
[Round "4"]
[White "Subocz, Barbara"]
[Black "Rutschmann, Polly"]
[Result "1-0"]
[ECO "C01"]
[WhiteElo "1623"]
[BlackElo "1072"]
[Annotator "NA RC"]
[PlyCount "47"]
[EventDate "2024.12.23"]
[EventType "team-tourn"]
[EventRounds "7"]
[EventCountry "GER"]
[SourceTitle "playchess.com"]
[Source "ChessBase"]
[SourceQuality "1"]
[TimeControl "40/5400+30:1800+30"]

1. e4 {[%emt 0:00:12]} e6 {[%emt 0:00:13]} 2. d4 {[%emt 0:00:06]} d5 {[%emt 0:00:07]} 3. exd5 {[%emt 0:00:17]} exd5 {[%emt 0:00:13]} 4. Bd3 {[%emt 0:00:14]} Bd6 {[%emt 0:00:16]} 5. h3 {[%emt 0:00:29]} Ne7 {[%emt 0:00:28]} 6. Nf3 {[%emt 0:00:26]} O-O {[%emt 0:00:25]} 7. O-O {[%emt 0:00:26]} Nbc6 {[%emt 0:00:33]} 8. Be3 {[%emt 0:00:51]} Ng6 {[%emt 0:01:38]} 9. Nc3 {[%emt 0:00:26]} Re8 {[%emt 0:02:56]} 10. Kh1 {[%emt 0:03:14]} Bf4 {[%emt 0:03:35]} 11. Qd2 {[%emt 0:04:55]} Bxe3 {[%emt 0:02:08]} 12. fxe3 {[%emt 0:00:09]} Nh4 {[%emt 0:02:00]} 13. Qf2 {[%emt 0:00:48]} Nxf3 {[%emt 0:02:11]} 14. Qxf3 {[%emt 0:03:06]} Qe7 {[%emt 0:01:41]} 15. Nxd5 {[%emt 0:00:33]} Qd7 {[%emt 0:00:57]} 16. Bc4 {[%emt 0:00:46]} b6 {[%emt 0:03:48]} 17. Qg3 {[%emt 0:00:48]} Qd6 {[%emt 0:09:43]} 18. Nf6+ {[%emt 0:00:54]} Kf8 {[%emt 0:01:06]} 19. Qxd6+ {[%emt 0:00:17]} cxd6 {[%emt 0:00:19]} 20. Nxe8 {[%emt 0:00:20]} Kxe8 {[%emt 0:00:17]} 21. Bd5 {[%emt 0:00:39]} Bb7 {[%emt 0:01:11]} 22. Rxf7 {[%emt 0:00:37]} Nd8 {[%emt 0:02:08]} 23. Bxb7 {[%emt 0:00:47]} Nxf7 {[%emt 0:00:32]} 24. Bxa8 {[%emt 0:00:07]} 1-0

[Event "DVM U12w 2024"]
[Site "Bad Homburg"]
[Date "2024.12.28"]
[Round "4"]
[White "Bayer, Klara"]
[Black "Busch, Lara Sophie"]
[Result "1-0"]
[ECO "D43"]
[WhiteElo "1618"]
[BlackElo "1625"]
[Annotator "NA RC"]
[PlyCount "35"]
[EventDate "2024.12.23"]
[EventType "team-tourn"]
[EventRounds "7"]
[EventCountry "GER"]
[SourceTitle "playchess.com"]
[Source "ChessBase"]
[SourceQuality "1"]
[TimeControl "40/5400+30:1800+30"]

1. Nf3 {[%emt 0:00:04]} Nf6 {[%emt 0:00:59]} 2. d4 {[%emt 0:00:11]} d5 {[%emt 0:00:19]} 3. c4 {[%emt 0:00:15]} c6 {[%emt 0:00:14]} 4. Nc3 {[%emt 0:00:23]} dxc4 {[%emt 0:00:41]} 5. Bf4 {[%emt 0:00:23]} e6 {[%emt 0:00:30]} 6. e3 {[%emt 0:00:18]} b5 {[%emt 0:00:17]} 7. Ne5 {[%emt 0:00:30]} Bb4 {[%emt 0:00:33]} 8. a3 {[%emt 0:20:12]} Bxc3+ {[%emt 0:00:03]} 9. bxc3 {[%emt 0:00:07]} Qa5 {[%emt 0:05:42]} 10. Qd2 {[%emt 0:04:25]} Ne4 {[%emt 0:02:31]} 11. Qc2 {[%emt 0:00:50]} Qxc3+ {[%emt 0:02:21]} 12. Qxc3 {[%emt 0:00:04]} Nxc3 {[%emt 0:00:01]} 13. Rc1 {[%emt 0:00:51]} Nd5 {[%emt 0:01:35]} 14. g3 {[%emt 0:02:39]} f6 {[%emt 0:09:24]} 15. Nf3 {[%emt 0:02:52]} Nd7 {[%emt 0:04:31]} 16. Bd6 {[%emt 0:02:35]} Bb7 {[%emt 0:04:14]} 17. Be2 {[%emt 0:01:41]} a5 {[%emt 0:03:39]} 18. O-O {[%emt 0:01:07]} 1-0

[Event "DVM U12w 2024"]
[Site "Bad Homburg"]
[Date "2024.12.28"]
[Round "4"]
[White "Fruth, Julia"]
[Black "Noennig, Lotte"]
[Result "0-1"]
[ECO "C45"]
[WhiteElo "1614"]
[BlackElo "1635"]
[Annotator "NA RC"]
[PlyCount "55"]
[EventDate "2024.12.23"]
[EventType "team-tourn"]
[EventRounds "7"]
[EventCountry "GER"]
[SourceTitle "playchess.com"]
[Source "ChessBase"]
[SourceQuality "1"]
[TimeControl "40/5400+30:1800+30"]

1. e4 {[%emt 0:00:04]} e5 {[%emt 0:00:09]} 2. Nf3 {[%emt 0:00:05]} Nc6 {[%emt 0:00:11]} 3. d4 {[%emt 0:00:07]} exd4 {[%emt 0:00:17]} 4. Nxd4 {[%emt 0:00:07]} Bc5 {[%emt 0:00:30]} 5. Nf5 {[%emt 0:00:58]} Qf6 {[%emt 0:06:11]} 6. Nc3 {[%emt 0:00:41]} Nge7 {[%emt 0:04:38]} 7. Ne3 {[%emt 0:00:56]} O-O {[%emt 0:05:27]} 8. Be2 {[%emt 0:01:13]} d6 {[%emt 0:04:18]} 9. O-O {[%emt 0:00:54]} Be6 {[%emt 0:02:01]} 10. Kh1 {[%emt 0:05:43]} Bxe3 {[%emt 0:03:26]} 11. Bxe3 {[%emt 0:03:40]} Rad8 {[%emt 0:03:47]} 12. Qd2 {[%emt 0:12:45]} h6 {[%emt 0:04:52]} 13. Nd5 {[%emt 0:02:26]} Bxd5 {[%emt 0:02:34]} 14. exd5 {[%emt 0:00:26]} Ne5 {[%emt 0:01:47]} 15. Bd4 {[%emt 0:10:02]} Qf5 {[%emt 0:03:38]} 16. Rae1 {[%emt 0:04:22]} Nxd5 {[%emt 0:04:41]} 17. Bxa7 {[%emt 0:10:49]} Nf4 {[%emt 0:08:19]} 18. Be3 {[%emt 0:07:18]} Nxe2 {[%emt 0:01:30]} 19. Rxe2 {[%emt 0:01:51]} Rfe8 {[%emt 0:02:56]} 20. Rfe1 {[%emt 0:01:15]} Re6 {[%emt 0:02:24]} 21. Bd4 {[%emt 0:03:35]} Nf3 {[%emt 0:07:38]} 22. Qc3 {[%emt 0:08:34]} Nxe1 {[%emt 0:01:38]} 23. Qxe1 {[%emt 0:02:02]} Rde8 {[%emt 0:01:43]} 24. Rxe6 {[%emt 0:02:33]} Rxe6 {[%emt 0:01:53]} 25. Qc3 {[%emt 0:01:16]} Qe4 {[%emt 0:01:30]} 26. h3 {[%emt 0:00:33]} Rg6 {[%emt 0:01:23]} 27. Qf3 {[%emt 0:01:28]} Qxd4 {[%emt 0:00:48]} 28. Qxb7 {[%emt 0:00:22]} 0-1

[Event "DVM U12w 2024"]
[Site "Bad Homburg"]
[Date "2024.12.28"]
[Round "4"]
[White "Sobczak, Zuzanna"]
[Black "Werner, Amelie"]
[Result "1/2-1/2"]
[ECO "B22"]
[WhiteElo "1598"]
[BlackElo "1525"]
[Annotator "NA RC"]
[PlyCount "78"]
[EventDate "2024.12.23"]
[EventType "team-tourn"]
[EventRounds "7"]
[EventCountry "GER"]
[SourceTitle "playchess.com"]
[Source "ChessBase"]
[SourceQuality "1"]
[TimeControl "40/5400+30:1800+30"]

1. e4 {[%emt 0:00:01]} c5 {[%emt 0:00:08]} 2. c3 {[%emt 0:00:06]} d5 {[%emt 0:00:06]} 3. exd5 {[%emt 0:00:07]} Qxd5 {[%emt 0:00:06]} 4. d4 {[%emt 0:00:06]} Bf5 {[%emt 0:01:16]} 5. Nf3 {[%emt 0:00:16]} Nc6 {[%emt 0:00:08]} 6. Be2 {[%emt 0:02:24]} e6 {[%emt 0:01:27]} 7. Bf4 {[%emt 0:00:53]} Nf6 {[%emt 0:00:38]} 8. Na3 {[%emt 0:00:50]} a6 {[%emt 0:00:18]} 9. Nc4 {[%emt 0:00:26]} Qd8 {[%emt 0:01:10]} 10. O-O {[%emt 0:01:04]} b5 {[%emt 0:01:11]} 11. Nce5 {[%emt 0:00:09]} Nxe5 {[%emt 0:00:28]} 12. Nxe5 {[%emt 0:00:12]} Bd6 {[%emt 0:01:02]} 13. Bf3 {[%emt 0:02:44]} Be4 {[%emt 0:02:34]} 14. Bxe4 {[%emt 0:00:18]} Nxe4 {[%emt 0:00:08]} 15. Qf3 {[%emt 0:00:50]} Bxe5 {[%emt 0:07:10]} 16. Bxe5 {[%emt 0:00:17]} Nd2 {[%emt 0:00:53]} 17. Qc6+ {[%emt 0:00:08]} Kf8 {[%emt 0:00:31]} 18. Qxc5+ {[%emt 0:00:15]} Kg8 {[%emt 0:00:13]} 19. Rfe1 {[%emt 0:01:43]} Rc8 {[%emt 0:00:59]} 20. Qb4 {[%emt 0:02:32]} Nc4 {[%emt 0:07:12]} 21. Rad1 {[%emt 0:00:32]} Qd5 {[%emt 0:02:41]} 22. b3 {[%emt 0:00:32]} Nb6 {[%emt 0:01:46]} 23. Qa5 {[%emt 0:01:05]} Qb7 {[%emt 0:00:31]} 24. a4 {[%emt 0:08:08]} bxa4 {[%emt 0:02:28]} 25. bxa4 {[%emt 0:00:09]} Nc4 {[%emt 0:00:35]} 26. Qb4 {[%emt 0:00:13]} Qd5 {[%emt 0:04:51]} 27. Rd3 {[%emt 0:03:54]} f6 {[%emt 0:03:36]} 28. Bg3 {[%emt 0:03:01]} Kf7 {[%emt 0:00:53]} 29. Rb1 {[%emt 0:00:38]} a5 {[%emt 0:06:02]} 30. Qb7+ {[%emt 0:00:22]} Kg6 {[%emt 0:00:07]} 31. Qxd5 {[%emt 0:00:10]} exd5 {[%emt 0:00:10]} 32. Rb5 {[%emt 0:01:02]} Rhd8 {[%emt 0:01:16]} 33. f3 {[%emt 0:00:18]} Kf5 {[%emt 0:03:40]} 34. Rb7 {[%emt 0:01:03]} Kg6 {[%emt 0:00:10]} 35. f4 {[%emt 0:00:39]} h6 {[%emt 0:05:59]} 36. Bh4 {[%emt 0:01:06]} Rg8 {[%emt 0:08:23]} 37. g4 {[%emt 0:14:20]} Rgf8 {[%emt 0:03:50]} 38. f5+ {[%emt 0:00:44]} Kh7 {[%emt 0:00:07]} 39. Kf2 {[%emt 0:02:46]} Rb8 {[%emt 0:00:57]} 1/2-1/2

[Event "DVM U12w 2024"]
[Site "Bad Homburg"]
[Date "2024.12.28"]
[Round "4"]
[White "Wolf, Helena"]
[Black "Frenzel, Qorianka"]
[Result "1/2-1/2"]
[ECO "C50"]
[WhiteElo "1582"]
[BlackElo "1568"]
[Annotator "NA RC"]
[PlyCount "91"]
[EventDate "2024.12.23"]
[EventType "team-tourn"]
[EventRounds "7"]
[EventCountry "GER"]
[SourceTitle "playchess.com"]
[Source "ChessBase"]
[SourceQuality "1"]
[TimeControl "40/5400+30:1800+30"]

1. e4 {[%emt 0:00:03]} e5 {[%emt 0:00:07]} 2. Nf3 {[%emt 0:00:04]} Nc6 {[%emt 0:00:07]} 3. Bc4 {[%emt 0:00:06]} Nf6 {[%emt 0:00:05]} 4. d3 {[%emt 0:00:11]} Bc5 {[%emt 0:00:07]} 5. O-O {[%emt 0:00:09]} d6 {[%emt 0:00:13]} 6. h3 {[%emt 0:00:08]} Ne7 {[%emt 0:00:14]} 7. c3 {[%emt 0:00:35]} Bb6 {[%emt 0:00:07]} 8. Nbd2 {[%emt 0:01:58]} Ng6 {[%emt 0:00:23]} 9. Re1 {[%emt 0:01:01]} O-O {[%emt 0:00:55]} 10. Nf1 {[%emt 0:03:49]} c6 {[%emt 0:01:53]} 11. Bb3 {[%emt 0:01:25]} h6 {[%emt 0:03:40]} 12. Ng3 {[%emt 0:04:15]} Re8 {[%emt 0:01:34]} 13. d4 {[%emt 0:02:39]} a5 {[%emt 0:04:48]} 14. Qc2 {[%emt 0:10:54]} Qc7 {[%emt 0:05:30]} 15. Bd2 {[%emt 0:06:45]} c5 {[%emt 0:04:28]} 16. dxe5 {[%emt 0:08:31]} Nxe5 {[%emt 0:02:38]} 17. Nxe5 {[%emt 0:00:28]} dxe5 {[%emt 0:00:39]} 18. Bc4 {[%emt 0:02:01]} Bd7 {[%emt 0:02:41]} 19. Rad1 {[%emt 0:05:03]} Ba7 {[%emt 0:02:42]} 20. a4 {[%emt 0:11:15]} Rab8 {[%emt 0:04:17]} 21. Qb3 {[%emt 0:09:06]} Be6 {[%emt 0:01:44]} 22. Bxe6 {[%emt 0:00:26]} Rxe6 {[%emt 0:00:30]} 23. c4 {[%emt 0:00:30]} b6 {[%emt 0:03:35]} 24. Bc3 {[%emt 0:02:13]} Rd8 {[%emt 0:03:11]} 25. Qc2 {[%emt 0:01:48]} Re7 {[%emt 0:01:27]} 26. Rxd8+ {[%emt 0:03:38]} Qxd8 {[%emt 0:00:28]} 27. Rd1 {[%emt 0:00:10]} Rd7 {[%emt 0:01:50]} 28. Rxd7 {[%emt 0:00:37]} Nxd7 {[%emt 0:00:11]} 29. Qd2 {[%emt 0:00:44]} Qc7 {[%emt 0:00:42]} 30. Qd5 {[%emt 0:00:31]} Bb8 {[%emt 0:01:04]} 31. Nf5 {[%emt 0:01:20]} Nf6 {[%emt 0:02:00]} 32. Qd3 {[%emt 0:00:42]} Nh5 {[%emt 0:07:18]} 33. Bd2 {[%emt 0:04:48]} Kf8 {[%emt 0:02:36]} 34. Qf3 {[%emt 0:01:35]} Nf4 {[%emt 0:05:35]} 35. Bxf4 {[%emt 0:01:59]} exf4 {[%emt 0:00:13]} 36. Qd3 {[%emt 0:00:17]} Kg8 {[%emt 0:04:32]} 37. Qd5 {[%emt 0:07:07]} Kf8 {[%emt 0:05:30]} 38. Kf1 {[%emt 0:00:38]} Qc8 {[%emt 0:02:24]} 39. Nd6 {[%emt 0:05:09]} Qd7 {[%emt 0:00:57]} 40. Nb5 {[%emt 0:01:25]} Ke7 {[%emt 0:02:31]} 41. Nc3 {[%emt 0:32:35]} Bd6 {[%emt 0:04:09]} 42. Nb5 {[%emt 0:01:15]} Bb8 {[%emt 0:00:41]} 43. Qxd7+ {[%emt 0:00:33]} Kxd7 {[%emt 0:00:09]} 44. Ke2 {[%emt 0:00:04]} Be5 {[%emt 0:00:18]} 45. b3 {[%emt 0:00:14]} Ke6 {[%emt 0:00:39]} 46. Kd3 {[%emt 0:01:29]} 1/2-1/2

[Event "DVM U12w 2024"]
[Site "Bad Homburg"]
[Date "2024.12.28"]
[Round "4"]
[White "Elsayed Esam, Sally"]
[Black "Litvinchuk, Mariia"]
[Result "1-0"]
[ECO "D02"]
[WhiteElo "1563"]
[BlackElo "972"]
[Annotator "NA RC"]
[PlyCount "75"]
[EventDate "2024.12.23"]
[EventType "team-tourn"]
[EventRounds "7"]
[EventCountry "GER"]
[SourceTitle "playchess.com"]
[Source "ChessBase"]
[SourceQuality "1"]
[TimeControl "40/5400+30:1800+30"]

1. d4 {[%emt 0:00:02]} d5 {[%emt 0:00:05]} 2. Nf3 {[%emt 0:00:14]} e6 {[%emt 0:00:09]} 3. Bf4 {[%emt 0:00:14]} Nf6 {[%emt 0:01:27]} 4. e3 {[%emt 0:00:10]} Be7 {[%emt 0:00:35]} 5. Bd3 {[%emt 0:00:31]} Nbd7 {[%emt 0:01:27]} 6. O-O {[%emt 0:00:21]} Nf8 {[%emt 0:00:36]} 7. h3 {[%emt 0:00:33]} Ng6 {[%emt 0:01:36]} 8. Bh2 {[%emt 0:00:45]} c5 {[%emt 0:01:28]} 9. c3 {[%emt 0:01:21]} c4 {[%emt 0:01:11]} 10. Bc2 {[%emt 0:00:10]} O-O {[%emt 0:01:34]} 11. Nbd2 {[%emt 0:00:30]} Bd6 {[%emt 0:03:21]} 12. Bxd6 {[%emt 0:05:24]} Qxd6 {[%emt 0:01:15]} 13. Bxg6 {[%emt 0:03:28]} fxg6 {[%emt 0:00:17]} 14. Ne5 {[%emt 0:00:30]} Nd7 {[%emt 0:02:30]} 15. Ndf3 {[%emt 0:00:37]} Rf5 {[%emt 0:04:05]} 16. Re1 {[%emt 0:01:22]} Nf6 {[%emt 0:09:34]} 17. g4 {[%emt 0:02:18]} Nxg4 {[%emt 0:09:47]} 18. hxg4 {[%emt 0:00:25]} Rf8 {[%emt 0:00:26]} 19. Kf1 {[%emt 0:03:23]} Qe7 {[%emt 0:08:47]} 20. Ke2 {[%emt 0:01:22]} g5 {[%emt 0:05:12]} 21. Kd2 {[%emt 0:01:45]} Bd7 {[%emt 0:02:25]} 22. Rh1 {[%emt 0:12:22]} Rf6 {[%emt 0:12:49]} 23. Rh3 {[%emt 0:02:59]} b5 {[%emt 0:01:45]} 24. a3 {[%emt 0:03:57]} Rb8 {[%emt 0:02:03]} 25. Qh1 {[%emt 0:01:01]} h6 {[%emt 0:02:46]} 26. Rf1 {[%emt 0:03:20]} Rbf8 {[%emt 0:05:14]} 27. Qh2 {[%emt 0:01:35]} a5 {[%emt 0:06:31]} 28. Nxg5 {[%emt 0:02:51]} b4 {[%emt 0:01:10]} 29. Ngf3 {[%emt 0:13:11]} bxa3 {[%emt 0:02:02]} 30. g5 {[%emt 0:02:50]} Rxf3 {[%emt 0:04:01]} 31. Nxf3 {[%emt 0:01:44]} axb2 {[%emt 0:02:59]} 32. gxh6 {[%emt 0:01:59]} e5 {[%emt 0:02:05]} 33. Rg3 {[%emt 0:01:42]} Rf7 {[%emt 0:02:01]} 34. hxg7 {[%emt 0:02:50]} Rxg7 {[%emt 0:01:06]} 35. Rh1 {[%emt 0:01:58]} Kf7 {[%emt 0:02:27]} 36. Rxg7+ {[%emt 0:00:56]} Kxg7 {[%emt 0:00:11]} 37. Qh7+ {[%emt 0:00:09]} Kf6 {[%emt 0:00:14]} 38. Rh6# {[%emt 0:00:15]} 1-0

[Event "DVM U12w 2024"]
[Site "Bad Homburg"]
[Date "2024.12.28"]
[Round "4"]
[White "Kuebart, Ela Marie"]
[Black "Klymenko, Mariia"]
[Result "1/2-1/2"]
[ECO "A80"]
[WhiteElo "1561"]
[BlackElo "1625"]
[Annotator "NA RC"]
[PlyCount "58"]
[EventDate "2024.12.23"]
[EventType "team-tourn"]
[EventRounds "7"]
[EventCountry "GER"]
[SourceTitle "playchess.com"]
[Source "ChessBase"]
[SourceQuality "1"]
[TimeControl "40/5400+30:1800+30"]

1. d4 {[%emt 0:00:06]} e6 {[%emt 0:00:04]} 2. Nf3 {[%emt 0:00:23]} f5 {[%emt 0:00:06]} 3. e3 {[%emt 0:00:18]} b6 {[%emt 0:00:05]} 4. Bd3 {[%emt 0:01:41]} Bb7 {[%emt 0:00:11]} 5. Nbd2 {[%emt 0:00:13]} Nf6 {[%emt 0:00:11]} 6. O-O {[%emt 0:01:28]} Bb4 {[%emt 0:01:29]} 7. c3 {[%emt 0:00:09]} Bd6 {[%emt 0:00:56]} 8. Qc2 {[%emt 0:00:41]} O-O {[%emt 0:01:22]} 9. Re1 {[%emt 0:00:24]} Qe8 {[%emt 0:07:18]} 10. e4 {[%emt 0:01:23]} fxe4 {[%emt 0:00:35]} 11. Nxe4 {[%emt 0:00:08]} Nxe4 {[%emt 0:02:07]} 12. Bxe4 {[%emt 0:00:17]} Bxe4 {[%emt 0:00:36]} 13. Qxe4 {[%emt 0:00:27]} Nc6 {[%emt 0:01:22]} 14. d5 {[%emt 0:02:20]} exd5 {[%emt 0:00:20]} 15. Qxd5+ {[%emt 0:00:10]} Qf7 {[%emt 0:00:19]} 16. Qxf7+ {[%emt 0:00:45]} Rxf7 {[%emt 0:00:19]} 17. Be3 {[%emt 0:01:50]} h6 {[%emt 0:01:51]} 18. Rad1 {[%emt 0:00:48]} Re8 {[%emt 0:02:40]} 19. Nd4 {[%emt 0:01:35]} Nxd4 {[%emt 0:03:03]} 20. Bxd4 {[%emt 0:00:15]} Rfe7 {[%emt 0:00:56]} 21. Rxe7 {[%emt 0:02:26]} Rxe7 {[%emt 0:00:11]} 22. Be3 {[%emt 0:00:08]} Kf7 {[%emt 0:00:43]} 23. Kf1 {[%emt 0:01:33]} Kg6 {[%emt 0:01:23]} 24. g3 {[%emt 0:00:45]} Kf5 {[%emt 0:01:51]} 25. Kg2 {[%emt 0:01:03]} g5 {[%emt 0:01:12]} 26. Rd5+ {[%emt 0:01:54]} Re5 {[%emt 0:01:49]} 27. Rxe5+ {[%emt 0:00:32]} Bxe5 {[%emt 0:00:43]} 28. f3 {[%emt 0:01:37]} c5 {[%emt 0:01:01]} 29. g4+ {[%emt 0:00:03]} Kf6 {[%emt 0:00:07]} 1/2-1/2

[Event "DVM U12w 2024"]
[Site "Bad Homburg"]
[Date "2024.12.28"]
[Round "4"]
[White "Winkler, Frida"]
[Black "Hendler, Felicitas"]
[Result "1-0"]
[ECO "B72"]
[WhiteElo "1555"]
[BlackElo "1610"]
[Annotator "NA RC"]
[PlyCount "41"]
[EventDate "2024.12.23"]
[EventType "team-tourn"]
[EventRounds "7"]
[EventCountry "GER"]
[SourceTitle "playchess.com"]
[Source "ChessBase"]
[SourceQuality "1"]
[TimeControl "40/5400+30:1800+30"]

1. e4 {[%emt 0:00:02]} c5 {[%emt 0:00:05]} 2. Nf3 {[%emt 0:00:09]} d6 {[%emt 0:00:09]} 3. d4 {[%emt 0:00:10]} cxd4 {[%emt 0:00:05]} 4. Nxd4 {[%emt 0:00:09]} Nf6 {[%emt 0:00:26]} 5. Nc3 {[%emt 0:00:14]} g6 {[%emt 0:01:12]} 6. f4 {[%emt 0:00:10]} Nc6 {[%emt 0:14:03]} 7. Be2 {[%emt 0:00:15]} Bg7 {[%emt 0:02:48]} 8. Be3 {[%emt 0:00:20]} O-O {[%emt 0:00:21]} 9. Qd2 {[%emt 0:01:21]} e6 {[%emt 0:02:16]} 10. O-O-O {[%emt 0:01:29]} a5 {[%emt 0:07:07]} 11. Nxc6 {[%emt 0:00:24]} bxc6 {[%emt 0:00:20]} 12. Qxd6 {[%emt 0:00:06]} Bb7 {[%emt 0:04:01]} 13. Qc5 {[%emt 0:02:33]} Qc7 {[%emt 0:08:32]} 14. e5 {[%emt 0:01:40]} Nd5 {[%emt 0:02:57]} 15. Nxd5 {[%emt 0:00:22]} exd5 {[%emt 0:00:27]} 16. Rxd5 {[%emt 0:00:08]} Rfe8 {[%emt 0:04:15]} 17. Rhd1 {[%emt 0:01:28]} Bf8 {[%emt 0:06:17]} 18. Qc3 {[%emt 0:04:49]} Bb4 {[%emt 0:04:01]} 19. Rd7 {[%emt 0:00:15]} Qc8 {[%emt 0:03:36]} 20. Qb3 {[%emt 0:00:29]} c5 {[%emt 0:02:25]} 21. Qxf7+ {[%emt 0:00:12]} 1-0

[Event "DVM U12w 2024"]
[Site "Bad Homburg"]
[Date "2024.12.28"]
[Round "4"]
[White "Ramien, Eva"]
[Black "Xu, Dorothea Sicheng"]
[Result "1/2-1/2"]
[ECO "C55"]
[WhiteElo "1542"]
[BlackElo "1585"]
[Annotator "NA RC"]
[PlyCount "92"]
[EventDate "2024.12.23"]
[EventType "team-tourn"]
[EventRounds "7"]
[EventCountry "GER"]
[SourceTitle "playchess.com"]
[Source "ChessBase"]
[SourceQuality "1"]
[TimeControl "40/5400+30:1800+30"]

1. e4 {[%emt 0:00:01]} e5 {[%emt 0:00:04]} 2. Nf3 {[%emt 0:00:07]} Nc6 {[%emt 0:00:04]} 3. Bc4 {[%emt 0:00:06]} Nf6 {[%emt 0:00:06]} 4. d3 {[%emt 0:00:12]} Be7 {[%emt 0:00:19]} 5. O-O {[%emt 0:00:14]} O-O {[%emt 0:00:12]} 6. h3 {[%emt 0:00:08]} d5 {[%emt 0:00:32]} 7. exd5 {[%emt 0:00:13]} Nxd5 {[%emt 0:00:07]} 8. Re1 {[%emt 0:00:09]} Bf6 {[%emt 0:00:56]} 9. Nbd2 {[%emt 0:00:41]} Re8 {[%emt 0:00:29]} 10. Bb5 {[%emt 0:00:50]} Bf5 {[%emt 0:02:26]} 11. Bxc6 {[%emt 0:03:45]} bxc6 {[%emt 0:00:18]} 12. Nc4 {[%emt 0:05:14]} e4 {[%emt 0:07:01]} 13. dxe4 {[%emt 0:00:43]} Bxe4 {[%emt 0:03:54]} 14. Ncd2 {[%emt 0:09:48]} Bxf3 {[%emt 0:07:11]} 15. Rxe8+ {[%emt 0:00:23]} Qxe8 {[%emt 0:00:17]} 16. Nxf3 {[%emt 0:00:09]} h6 {[%emt 0:01:53]} 17. c3 {[%emt 0:00:36]} Rb8 {[%emt 0:01:33]} 18. Qc2 {[%emt 0:02:12]} Qe6 {[%emt 0:03:41]} 19. Bd2 {[%emt 0:01:34]} a6 {[%emt 0:02:46]} 20. Re1 {[%emt 0:00:35]} Qd7 {[%emt 0:04:02]} 21. Bc1 {[%emt 0:04:31]} c5 {[%emt 0:06:17]} 22. Rd1 {[%emt 0:01:10]} Qc6 {[%emt 0:02:42]} 23. Qe4 {[%emt 0:02:02]} Rd8 {[%emt 0:06:17]} 24. c4 {[%emt 0:10:13]} Nb4 {[%emt 0:01:05]} 25. Rxd8+ {[%emt 0:00:31]} Bxd8 {[%emt 0:00:15]} 26. Qxc6 {[%emt 0:00:09]} Nxc6 {[%emt 0:00:05]} 27. Be3 {[%emt 0:00:39]} Be7 {[%emt 0:00:26]} 28. b3 {[%emt 0:00:29]} f5 {[%emt 0:03:52]} 29. Bf4 {[%emt 0:03:13]} Bd6 {[%emt 0:01:33]} 30. Be3 {[%emt 0:00:22]} Kf7 {[%emt 0:02:40]} 31. Kf1 {[%emt 0:00:14]} Nb4 {[%emt 0:05:35]} 32. a3 {[%emt 0:00:42]} Nc2 {[%emt 0:01:28]} 33. Bc1 {[%emt 0:00:54]} Nd4 {[%emt 0:01:45]} 34. Nxd4 {[%emt 0:02:19]} cxd4 {[%emt 0:00:20]} 35. Ke2 {[%emt 0:00:05]} c5 {[%emt 0:02:01]} 36. Bd2 {[%emt 0:00:19]} Ke6 {[%emt 0:01:16]} 37. Kd3 {[%emt 0:02:03]} g5 {[%emt 0:03:07]} 38. g3 {[%emt 0:03:20]} Ke5 {[%emt 0:04:49]} 39. f4+ {[%emt 0:02:29]} Kf6 {[%emt 0:01:25]} 40. fxg5+ {[%emt 0:01:55]} hxg5 {[%emt 0:00:18]} 41. Be1 {[%emt 0:30:47]} Ke5 {[%emt 0:33:54]} 42. b4 {[%emt 0:03:20]} Be7 {[%emt 0:04:11]} 43. bxc5 {[%emt 0:00:32]} Bxc5 {[%emt 0:00:17]} 44. a4 {[%emt 0:00:07]} f4 {[%emt 0:07:10]} 45. gxf4+ {[%emt 0:00:57]} Kxf4 {[%emt 0:02:21]} 46. Bd2+ {[%emt 0:01:07]} Kf5 {[%emt 0:02:06]} 1/2-1/2

[Event "DVM U12w 2024"]
[Site "Bad Homburg"]
[Date "2024.12.28"]
[Round "4"]
[White "Feldhaus, Lena"]
[Black "Mersmann, Jasmin"]
[Result "1/2-1/2"]
[ECO "D00"]
[WhiteElo "1539"]
[BlackElo "1527"]
[Annotator "NA RC"]
[PlyCount "43"]
[EventDate "2024.12.23"]
[EventType "team-tourn"]
[EventRounds "7"]
[EventCountry "GER"]
[SourceTitle "playchess.com"]
[Source "ChessBase"]
[SourceQuality "1"]
[TimeControl "40/5400+30:1800+30"]

1. d4 {[%emt 0:00:02]} d5 {[%emt 0:00:05]} 2. Nc3 {[%emt 0:00:52]} Nf6 {[%emt 0:00:13]} 3. Bf4 {[%emt 0:00:11]} c6 {[%emt 0:00:57]} 4. f3 {[%emt 0:00:33]} Bf5 {[%emt 0:00:33]} 5. Qd2 {[%emt 0:00:26]} e6 {[%emt 0:00:46]} 6. O-O-O {[%emt 0:00:57]} Bd6 {[%emt 0:02:57]} 7. g4 {[%emt 0:00:55]} Bg6 {[%emt 0:01:14]} 8. h4 {[%emt 0:00:25]} Bxf4 {[%emt 0:01:12]} 9. Qxf4 {[%emt 0:00:15]} h5 {[%emt 0:02:32]} 10. g5 {[%emt 0:01:51]} Ng8 {[%emt 0:04:47]} 11. e4 {[%emt 0:06:16]} Ne7 {[%emt 0:02:28]} 12. Nge2 {[%emt 0:04:57]} Nd7 {[%emt 0:03:00]} 13. Bh3 {[%emt 0:07:23]} Nb6 {[%emt 0:02:53]} 14. Rhe1 {[%emt 0:07:02]} O-O {[%emt 0:03:57]} 15. Qe3 {[%emt 0:11:30]} Nc4 {[%emt 0:01:15]} 16. Qf2 {[%emt 0:02:10]} Qc7 {[%emt 0:02:17]} 17. b3 {[%emt 0:01:43]} Nb6 {[%emt 0:00:48]} 18. Qg3 {[%emt 0:03:36]} Qxg3 {[%emt 0:00:51]} 19. Nxg3 {[%emt 0:00:16]} a5 {[%emt 0:00:36]} 20. Nge2 {[%emt 0:04:41]} a4 {[%emt 0:01:01]} 21. b4 {[%emt 0:01:18]} Nc4 {[%emt 0:01:08]} 22. Nf4 {[%emt 0:03:58]} 1/2-1/2